Cogmind - Beta 16.1 @@@ ROGUE MODE // 2026.04.12 @ 09:18:54 Player: Nomad Result: Destroyed by Y-45 Defender with Heavy Assault Rifle Performance ------------- Evolutions (1) 500 Regions Visited (2) 400 Robots Destroyed (9) 45 Value Destroyed (309) 309 Prototype IDs (0) 0 Alien Tech Used (0) 0 Bonus (0) 0 TOTAL SCORE: 1254 Bonus ------- None Cogmind --------- Core Integrity 0/400 Matter 300/300 Energy 100/100 System Corruption 0% Temperature Cool (9) Movement Core (150) Ox2 Location -9/Materials Parts ------- > --- POWER (2) -------- (None) > --- PROPULSION (3) --- (None) > --- UTILITY (2) ------ Small Storage Unit > --- WEAPON (2) ------- Spread Laser > --- INVENTORY (8) ---- Medium Storage Unit ECM Suite Peak State ------------ > --- POWER ------------ Light Ion Engine > --- PROPULSION ------- Aluminum Leg Aluminum Leg > --- UTILITY ---------- Small Storage Unit Tractor Beam > --- WEAPON ----------- Spread Laser Spread Laser > --- INVENTORY -------- Medium Armor Plating Medium Armor Plating [Rating: 9] Favorites ----------- Power Light Ion Engine Engine Light Ion Engine Propulsion Aluminum Leg Leg Aluminum Leg Wheel Compact Wheel Utility Small Storage Unit Device Tractor Beam Storage Small Storage Unit Weapon Spread Laser Energy Gun Spread Laser Ballistic Gun Assault Rifle Build | -11 -10 -9 ------- Run | Yrd Mat Mat Slots Evolved 2 | . . 2 Power 1 | . . 1 Propulsion 1 | . . 1 Utility . | . . . Weapon . | . . . Parts Attached 11 | 8 3 . Power 1 | 1 . . Engine 1 | 1 . . Core . | . . . Reactor . | . . . Propulsion 4 | 4 . . Treads . | . . . Leg 2 | 2 . . Wheel 2 | 2 . . Hover . | . . . Flight . | . . . Utility 2 | 1 1 . Device 1 | . 1 . Storage 1 | 1 . . Processor . | . . . Hackware . | . . . Protection . | . . . Artifact . | . . . Weapon 4 | 2 2 . Energy Gun 2 | . 2 . Energy Cannon . | . . . Ballistic Gun 2 | 2 . . Ballistic Cannon . | . . . Launcher . | . . . Special Weapon . | . . . Impact Weapon . | . . . Slashing Weapon . | . . . Piercing Weapon . | . . . Special Melee Weapon . | . . . Unidentified Prototypes . | . . . Parts Lost 5 | . . 5 Power 1 | . . 1 Propulsion 2 | . . 2 Utility 1 | . . 1 Weapon 1 | . . 1 Highest Loss Streak 4 | . . 4 To Critical Strikes . | . . . Average Backups 1 | 1 . 2 Power . | . . . Propulsion . | . . . Utility . | . . 2 Weapon . | . . . Tool/Special . | . . . Unused Backups 8 | 3 4 1 Power 1 | 1 . . Propulsion 1 | 1 . . Utility 5 | . 4 1 Weapon 1 | 1 . . Tool/Special . | . . . Average Slot Usage (%) 82 | . 96 64 Engine 11 | . 14 7 Leg 23 | . 28 18 Device 9 | . 11 6 Storage 12 | . 14 11 Energy Gun 12 | . 5 21 Ballistic Gun 12 | . 21 . Peak Build Rating 9 | 6 9 9 Average Rating 6 | 3 7 7 On Entrance 5 | . 6 9 Avg Prop Armor Cover (%) 20 | 20 . . Naked Turns . | . . . Heaviest Build 15 | 12 15 15 Greatest Support 20 | 3 20 20 Greatest Overweight (x) 3 | 3 . 3 Average Overweight (x) . | 1 . . Largest Inventory Capacity 8 | 8 8 8 Average Capacity 7 | 7 8 8 Most Carried 5 | 5 4 2 Average Carried 1 | 1 . 2 Final Capacity 8 | 8 8 8 Final Carried 2 | . 2 2 Class Distribution -------------------- 100% | Mutant Dominant Class ---------------- Mutant | -10/Materials Mutant | -9/Materials Resources | -11 -10 -9 ----------- Run | Yrd Mat Mat Matter Collected 330 | 203 77 50 Remotely . | . . . Salvage Created 248 | . 77 171 Parts 10 | . 3 7 Haulers Intercepted . | . . . Recyclers Shooed . | . . . Parts Field Recycled . | . . . Retrieved Matter . | . . . Parts Self-Destructed . | . . . Prevented . | . . . Parts Restored . | . . . Kills | -11 -10 -9 ------- Run | Yrd Mat Mat Combat Hostiles Destroyed 7 | . 2 5 Melee 1 | . . 1 Guns 5 | . 2 3 AOE 1 | . . 1 Classes Destroyed 4 | . 1 3 Worker 1 | . . 1 Watcher 1 | . . 1 Grunt 6 | . 2 4 Sentry 1 | . . 1 Best Kill Streak 3 | . 2 3 Combat Bots Only 3 | . 2 3 Max Kills in Single Turn 3 | . 1 3 Gunslinging . | . . . Exploded 1 | . . 1 Melee 1 | . . 1 Uniques/NPCs Destroyed . | . . . Combat | -11 -10 -9 -------- Run | Yrd Mat Mat Hostile Shots Fired 90 | . 26 64 Missed 23 | . 7 16 Hits 67 | . 19 48 Projectile 67 | . 19 48 Critical Strikes 2 | . . 2 Damage Taken 1071 | . 254 817 Core 490 | . 90 400 Absorbed by Shields . | . . . Core Remaining (%) 82 | 100 64 . Volleys Fired 23 | . 13 10 Largest 2 | . 2 2 Hottest 130 | . 40 130 Shots Fired 46 | . 26 20 Gun 46 | . 26 20 Cannon . | . . . Launcher . | . . . Special . | . . . Kinetic 26 | . 26 . Thermal 20 | . . 20 Explosive . | . . . Electromagnetic . | . . . Robot Hit Streak 7 | . 7 5 Robot Miss Streak 9 | . 7 9 Penetration Max . | . . . Secondary Targets . | . . . Shots Hit Robots 29 | . 13 16 Core Hits 27 | . 5 22 Critical Kills . | . . . Critical Parts Destroyed . | . . . Critical Strikes . | . . . Melee Attacks . | . . . Impact . | . . . Slashing . | . . . Piercing . | . . . Sneak Attacks . | . . . Combat Hostiles . | . . . Follow-up Attacks . | . . . Damage Inflicted 549 | . 167 382 Guns 331 | . 167 164 Cannons . | . . . Explosions 189 | . . 189 Melee . | . . . Ramming 29 | . . 29 Kinetic 167 | . 167 . Thermal 353 | . . 353 Explosive . | . . . Electromagnetic . | . . . Impact . | . . . Slashing . | . . . Piercing . | . . . Highest Corruption . | . . . Average Corruption . | . . . Corruption Purged . | . . . Corruption Blocked . | . . . Overload Shots . | . . . Overflow Damage 82 | . . 82 Projectiles . | . . . Explosions 82 | . . 82 Melee . | . . . Knockbacks . | . . . Impact . | . . . Kinetic . | . . . Secondary . | . . . Self-Inflicted Damage 145 | . . 145 Shots 2 | . . 2 Rammed 14 | . . 14 Targets Rammed 23 | . . 23 Kicked 9 | . . 9 Crushed . | . . . Highest Temperature 318 | . . 318 Average Temperature 115 | . . 115 Received Heat Transfer 402 | . 147 255 Effects 1 | . . 1 Energy Bleed 1 | . . 1 Siege Activations . | . . . Martial Activations . | . . . Shielding Activations . | . . . Robots Disrupted . | . . . Combat Hostiles . | . . . Robots Corrupted . | . . . Combat Hostiles . | . . . Parts Fried . | . . . Impact Corruptions . | . . . Robots Melted . | . . . Combat Hostiles . | . . . Parts Melted . | . . . Heat Transferred 360 | . . 360 Parts Sabotaged . | . . . Parts Stolen . | . . . Parts Stripped . | . . . Power Chain Reactions . | . . . Alert | -11 -10 -9 ------- Run | Yrd Mat Mat Maximum Alert Level . | . . . Low Security (%) 100 | 100 100 100 Level 1 . | . . . Level 2 . | . . . Level 3 . | . . . Level 4 . | . . . Level 5 . | . . . High Security . | . . . Max Security . | . . . Peak Influence 149 | . 50 149 Initial . | . . . Average 27 | . 8 60 Influence Increases 289 | . 50 239 Destroy 0b10 Robot/C 140 | . 40 100 Destroy 0b10 Robot/NC 10 | . . 10 Destroy Leader 32 | . 10 22 Disable Machine 45 | . . 45 Destroy Structure 47 | . . 47 Partial Spotted 15 | . . 15 Influence Decreases 180 | . 50 130 Time Decay 130 | . 50 80 Lost Part 50 | . . 50 Squads Dispatched 1 | . . 1 Investigation . | . . . Extermination . | . . . Reinforcement 1 | . . 1 Assault . | . . . Garrison . | . . . Intercept . | . . . Searches Triggered . | . . . Construction Impeded . | . . . Haulers Reinforced . | . . . Active Scanning Responses . | . . . Cargo Convoy Interrupts . | . . . Stealth | -11 -10 -9 --------- Run | Yrd Mat Mat Distress Signals . | . . . Communications Jammed . | . . . Distress Signals . | . . . Times Spotted 12 | . 3 9 Peak Tracking Total 5 | . 3 5 Tactical Retreats . | . . . Traps | -11 -10 -9 ------- Run | Yrd Mat Mat Traps Triggered . | . . . Indirectly . | . . . Trap Hack Attempts . | . . . Triggered . | . . . Disarmed . | . . . Reprogrammed . | . . . Reused . | . . . Traps Extracted . | . . . Installed . | . . . Triggered . | . . . Machines | -11 -10 -9 ---------- Run | Yrd Mat Mat Machines Disabled 3 | . . 3 Max in Single Turn 3 | . . 3 Machines Repaired . | . . . Machines Dismantled . | . . . Machines Sabotaged . | . . . Overloaded Fab Kills . | . . . Hacking | -11 -10 -9 --------- Run | Yrd Mat Mat Machines Accessed 3 | . 2 1 Terminals 3 | . 2 1 Fabricators . | . . . Repair Stations . | . . . Recycling Units . | . . . Scanalyzers . | . . . Garrison Access . | . . . Total Hacks 8 | . 7 1 Successful 5 | . 5 . Failed 3 | . 2 1 Catastrophic . | . . . Database Lockouts . | . . . Manual . | . . . Terminals 8 | . 7 1 Fabricators . | . . . Repair Stations . | . . . Recycling Units . | . . . Scanalyzers . | . . . Garrison Access . | . . . Terminal Hacks 5 | . 5 . Record 4 | . 4 . Alert Level 1 | . 1 . Fabricator Hacks . | . . . Repair Station Hacks . | . . . Recycling Unit Hacks . | . . . Scanalyzer . | . . . Garrison Access Hacks . | . . . Unauthorized Hacks . | . . . Terminals . | . . . Fabricators . | . . . Repair Stations . | . . . Recycling Units . | . . . Scanalyzers . | . . . Garrison Access . | . . . Data Cores Recovered . | . . . Used . | . . . Hacking Detections 2 | . 2 . Full Trace Events . | . . . Feedback Events . | . . . Feedback Blocked . | . . . Robot Schematics Acquired . | . . . Robots Built . | . . . Authchips . | . . . Time . | . . . Total Robot Build Rating . | . . . Part Schematics Acquired . | . . . Parts Built . | . . . Authchips . | . . . Time . | . . . Total Part Build Rating . | . . . Part Studies Acquired . | . . . Parts Repaired . | . . . Time . | . . . Parts Recycled . | . . . Recycled Matter . | . . . Retrieved Matter . | . . . Retrieved Components . | . . . Parts Scanalyzed . | . . . Part Schematics Acquired . | . . . Parts Damaged . | . . . Bothacking | -11 -10 -9 ------------ Run | Yrd Mat Mat Used RIF Installer . | . . . Robots Hacked . | . . . Non-combat . | . . . Combat . | . . . Robot Hacks Applied . | . . . Relay Couplers Released . | . . . Fabnet Peak Effective % . | . . . Robots Rewired . | . . . Allies Hacked . | . . . Hacks Repelled . | . . . Allies | -11 -10 -9 -------- Run | Yrd Mat Mat Total Allies . | . . . Largest Group . | . . . Highest-Rated Group . | . . . Highest-Rated Ally . | . . . Total Orders . | . . . Ally Attacks . | . . . Total Damage . | . . . Kills . | . . . Allies Corrupted . | . . . Allies Melted . | . . . Intel | -11 -10 -9 ------- Run | Yrd Mat Mat Active Infowar (turns) . | . . . Robot Analysis Total . | . . . Derelict Logs Recovered . | . . . Drone Launches . | . . . Drone Recoveries . | . . . Exploration | -11 -10 -9 ------------- Run | Yrd Mat Mat Turns Passed 636 | 83 306 247 Spaces Moved 364 | 45 190 129 Core 52 | 45 . 7 Treads . | . . . Legs 312 | . 190 122 Wheels . | . . . Hover . | . . . Flight . | . . . Fastest Speed 50 | 50 120 120 Average Speed 123 | 133 120 124 Slowest Speed 200 | 200 120 200 Overloaded Moves . | . . . Propulsion Burnouts . | . . . Robots Hopped . | . . . Potential Cave-ins 2 | . . 2 Cave-ins Triggered . | . . . Exploration Rate (%) 16 | 4 31 13 Regions Visited 2 Branch Regions . Pre-discovered Areas . | . . . Known Exits Taken . | . . . Unknown Exits Taken 2 | 1 1 . Scrap Searched . | . . . Spaces Dug . | . . . Terrain Destroyed 49 | . . 49 Melee . | . . . Projectile . | . . . AOE 49 | . . 49 Terrain Rammed . | . . . Walls Destroyed . | . . . Machines Disabled . | . . . Actions | -11 -10 -9 --------- Run | Yrd Mat Mat Total 501 | 72 246 183 Wait 48 | 3 24 21 Move 362 | 44 189 129 Hop . | . . . Pick Up 20 | 11 9 . Fast Attach . | . . . Attach 11 | 8 3 . Detach 3 | 1 2 . Swap . | . . . Drop 11 | 5 6 . Fire 23 | . 13 10 Melee . | . . . Ram 14 | . . 14 Kick 9 | . . 9 Crush . | . . . Escape Stasis . | . . . Rewire . | . . . Trap . | . . . Miscellaneous . | . . . Route ------- -11/Scrapyard -10/Materials -9/Materials History --------- Turn | Location | Event 12 | -11/Scrapyard | Discovered new exit (range 15) 84 | -11/Scrapyard | Entered Materials 303 | -10/Materials | Build established: Mutant 308 | -10/Materials | Discovered new exit (range 16) 390 | -10/Materials | Entered another Materials area 390 | -9/Materials | Evolved 2 slots: Power x1, Propulsion x1 608 | -9/Materials | Core integrity fell below 50% 629 | -9/Materials | Core integrity fell below 20% 637 | -9/Materials | Destroyed by Y-45 Defender with Heavy Assault Rifle Last Messages --------------- Slammed into Y-45 Defender. K-01 Serf collects debris. Slammed into Y-45 Defender. T-07 Excavator is excavating. U-05 Engineer lays Concrete. T-07 Excavator is excavating. U-05 Engineer lays Concrete. Acquired 15 matter. U-05 Engineer lays Concrete. Slammed into Y-45 Defender. Destabilizing: Core damaged (-4). Spread Laser destroyed. Slammed into Y-45 Defender. Destabilizing: Core damaged (-4). Slammed into Y-45 Defender. Destabilizing: Core damaged (-20). T-07 Excavator is excavating. Slammed into Y-45 Defender. Destabilizing: Core damaged (-4). Slammed into Y-45 Defender. Map ----- +----------------------------------------------------+ | | | ?????????????????????????????????????????????????? | | ?????????????????????????????????????????????????? | | ?????????????????????????????????????????????????? | | ?????????????????????????????????????????????????? | | ?????????????????????????????????????????????????? | | ?????????????????????????????????????????######### | | ?????????????????????????????????????????# | | ?????????????????????????????????????????# ##### | | ?????????????????????????????????????????# ## | | ?????????????????????????????????????????# ## | | ?????????????????????????????????????????# ## | | ?????????????????????????????????????????# ## | | ?????????????????????#######????????????## ## | | ?????????????????????# = ########+##### # | | ?????????????????????# # | | ?????????????????????# " + | | ?????????????????????# = # | | ?????????????????????# ############## %[ #### | | ???????????????######## #######???# """"="%####? | | ???????????????# # # #??## " ! # | | ???????????????#""" #%%%# #??#""" " | | ???????????????#""" %;%% #??# " " | | ???????????????#""" =#%% # ##??# "" " | | ???????????????# #r ######???# "" "= | | ???????????????# #%%@#????????# "" "# | | ???????????????########% Y#????????##"" " | | ??????????????????????# #????????? " ! " | | ??????????????????????# #???????? #" """""# | | ??????????????????????# #??????? ##""""""" " | | ?????????????????????? #?????? ?? ### | | ????????????????????? #????? ?? #??? | | ????????????????????? #????? ?? """ #??? | | ????????????????????### #???? ?? """ #??? | | ??????????????????????# #??? ?? ""? +??? | | ??????????????????????# k#??? ?? ??? #??? | | ??????????????????????+ #?????####+????#????#??? | | ??????????????????????# ??????????????????????? | | ??????????????????????# ??????????????????????? | | ??????????????????????# ??????????????????????? | | ???????????????????????####??????????????????????? | | ?????????????????????????????????????????????????? | | ?????????????????????????????????????????????????? | | ?????????????????????????????????????????????????? | | ?????????????????????????????????????????????????? | | ?????????????????????????????????????????????????? | | ?????????????????????????????????????????????????? | | ?????????????????????????????????????????????????? | | ?????????????????????????????????????????????????? | | ?????????????????????????????????????????????????? | +----------------------------------------------------+ Best States ------------- Heat Dissipation 28 Energy Generation 5 Energy Capacity 125 Matter Stores 300 Matter Capacity 300 Sight Range 16 Terrain Scan Density 10 Evasion (%) 55 Item Schematics ----------------- None Robot Schematics ------------------ None Fabricated ------------ Nothing Repaired ---------- Nothing Studied --------- None Alien Tech Used ----------------- None Achievements -------------- DATA ERROR: Steam Global Achievement% For Emergencies Only I Have A Map? Overwhelming Challenges ------------ None Game ------ Seed AntisysBeamFlail Manual? 0 Play Time 00:18:13 Cumulative 2.7 hours Start 2026.04.09 @ 23:58:39 End 2026.04.12 @ 09:18:54 Sessions 4 Manual Loads 0 Difficulty Rogue Special Mode None Game No. 10 Rogue 10 Adventurer 0 Explorer 0 Win Type - Total 0 Types 0/0/0/0/0/0/0/0/0/0 Lore% 1 Gallery% 4 Achievement% 4 Wizard Run 0 Options --------- Layout 1 ASCII 0 Keyboard 0 Movement Numpad Keybinds 0 Fullscreen 1 Font 32/SmallcapsGlow Map View 50x35 Zoom Use 3% Tactical HUD 0 Map Filters NONE Filters NONE Steam 1 RUN: d3a5759d-9b93-4459-9bd3-e97580b424fa